[Event "*** Titled Tuesday Blitz"]
[Site "Chess.com"]
[Date "2019.08.06"]
[Round "1"]
[White "Walter_White_Poland"]
[Black "HansCoolNiemann"]
[Result "0-1"]
[WhiteElo "2338"]
[BlackElo "2688"]
[TimeControl "180+2"]
[EndTime "13:07:40 PDT"]
[Termination "HansCoolNiemann won on time"]

1. e4 {[%clk 0:03:01.9]} 1... g6 {[%clk 0:02:55.1]} 2. d4 {[%clk 0:03:02.2]}
2... Bg7 {[%clk 0:02:51]} 3. Nc3 {[%clk 0:03:03.1]} 3... c6 {[%clk 0:02:50.3]}
4. Nf3 {[%clk 0:02:58.2]} 4... d5 {[%clk 0:02:50.6]} 5. h3 {[%clk 0:02:58.9]}
5... dxe4 {[%clk 0:02:51]} 6. Nxe4 {[%clk 0:02:59.5]} 6... Nf6 {[%clk
0:02:52.9]} 7. Nxf6+ {[%clk 0:02:59.7]} 7... exf6 {[%clk 0:02:54.8]} 8. Bc4
{[%clk 0:02:56.3]} 8... O-O {[%clk 0:02:55.7]} 9. O-O {[%clk 0:02:57]} 9... Nd7
{[%clk 0:02:56]} 10. a4 {[%clk 0:02:51.2]} 10... Nb6 {[%clk 0:02:55.4]} 11. Bb3
{[%clk 0:02:49.9]} 11... Nd5 {[%clk 0:02:55.4]} 12. a5 {[%clk 0:02:33.8]} 12...
Be6 {[%clk 0:02:51.1]} 13. Re1 {[%clk 0:02:23.4]} 13... b5 {[%clk 0:02:50]} 14.
axb6 {[%clk 0:02:00.2]} 14... axb6 {[%clk 0:02:51.9]} 15. Rxa8 {[%clk
0:02:00.9]} 15... Qxa8 {[%clk 0:02:50.7]} 16. Bd2 {[%clk 0:01:59.1]} 16... b5
{[%clk 0:02:41.7]} 17. Qe2 {[%clk 0:01:10]} 17... Re8 {[%clk 0:02:40.7]} 18. Qf1
{[%clk 0:01:10.2]} 18... h6 {[%clk 0:02:39.5]} 19. Ra1 {[%clk 0:01:10.6]} 19...
Qb7 {[%clk 0:02:39.7]} 20. Ra2 {[%clk 0:01:10.1]} 20... Nc7 {[%clk 0:02:28.7]}
21. Bxe6 {[%clk 0:01:07.6]} 21... Nxe6 {[%clk 0:02:30.6]} 22. Qa1 {[%clk
0:01:04.8]} 22... Qd7 {[%clk 0:02:30.6]} 23. Ra7 {[%clk 0:00:59.5]} 23... Qd5
{[%clk 0:02:30.6]} 24. Qa2 {[%clk 0:01:00.3]} 24... Qe4 {[%clk 0:02:30.7]} 25.
c3 {[%clk 0:00:54]} 25... g5 {[%clk 0:02:20.3]} 26. Be3 {[%clk 0:00:49.4]} 26...
h5 {[%clk 0:02:20.9]} 27. Nd2 {[%clk 0:00:49.7]} 27... Qf5 {[%clk 0:02:19.3]}
28. Qa6 {[%clk 0:00:40.9]} 28... Qd5 {[%clk 0:02:13]} 29. Ra8 {[%clk 0:00:25.7]}
29... Rxa8 {[%clk 0:02:11.6]} 30. Qxa8+ {[%clk 0:00:26.7]} 30... Kh7 {[%clk
0:02:13.5]} 31. Qe8 {[%clk 0:00:26.2]} 31... Kg6 {[%clk 0:02:11.8]} 32. b3
{[%clk 0:00:25.7]} 32... f5 {[%clk 0:02:08.7]} 33. c4 {[%clk 0:00:25.4]} 33...
Qd6 {[%clk 0:02:05.3]} 34. d5 {[%clk 0:00:24]} 34... cxd5 {[%clk 0:02:06.1]} 35.
c5 {[%clk 0:00:07]} 35... Nxc5 {[%clk 0:01:54.5]} 36. Qxb5 {[%clk 0:00:07.6]}
36... Ne6 {[%clk 0:01:54.9]} 37. Qb6 {[%clk 0:00:06.9]} 37... Qe5 {[%clk
0:01:55]} 38. Nf3 {[%clk 0:00:05.7]} 38... Qa1+ {[%clk 0:01:55.8]} 39. Kh2
{[%clk 0:00:05.6]} 39... d4 {[%clk 0:01:56.7]} 40. Bxg5 {[%clk 0:00:05.3]} 40...
d3 {[%clk 0:01:58]} 41. Be3 {[%clk 0:00:03.3]} 41... Be5+ {[%clk 0:01:59.3]} 42.
Nxe5+ {[%clk 0:00:03.7]} 42... Qxe5+ {[%clk 0:02:01.2]} 43. g3 {[%clk
0:00:05.1]} 43... Qd5 {[%clk 0:02:01.5]} 44. Qb4 {[%clk 0:00:04.3]} 44... h4
{[%clk 0:01:59.9]} 45. gxh4 {[%clk 0:00:02.7]} 45... Qf3 {[%clk 0:01:58]} 46.
h5+ {[%clk 0:00:02.4]} 46... Kxh5 {[%clk 0:01:57.4]} 0-1

[Event "*** Titled Tuesday Blitz"]
[Site "Chess.com"]
[Date "2019.08.06"]
[Round "1"]
[White "giantslayer83"]
[Black "ChessFunMaker"]
[Result "1-0"]
[WhiteElo "2608"]
[BlackElo "2220"]
[TimeControl "180+2"]
[EndTime "13:07:40 PDT"]
[Termination "giantslayer83 won by checkmate"]

1. d4 {[%clk 0:03:01.7]} 1... Nf6 {[%clk 0:03:00.5]} 2. c4 {[%clk 0:03:00.7]}
2... g6 {[%clk 0:03:02]} 3. Nc3 {[%clk 0:03:01]} 3... Bg7 {[%clk 0:03:03.7]} 4.
e4 {[%clk 0:03:02.1]} 4... O-O {[%clk 0:03:05.3]} 5. Be2 {[%clk 0:03:02.4]} 5...
d6 {[%clk 0:03:05.7]} 6. Bg5 {[%clk 0:03:02.5]} 6... Na6 {[%clk 0:02:56.3]} 7.
Qd2 {[%clk 0:03:01.4]} 7... e5 {[%clk 0:02:43.7]} 8. d5 {[%clk 0:03:01.8]} 8...
c6 {[%clk 0:02:29.4]} 9. f3 {[%clk 0:03:00.2]} 9... cxd5 {[%clk 0:02:25]} 10.
cxd5 {[%clk 0:02:55.8]} 10... Qa5 {[%clk 0:02:11.8]} 11. a3 {[%clk 0:02:51]}
11... Bd7 {[%clk 0:02:07.8]} 12. h4 {[%clk 0:02:45.8]} 12... h5 {[%clk
0:02:04.5]} 13. Nh3 {[%clk 0:02:46.2]} 13... b5 {[%clk 0:02:00.2]} 14. Nf2
{[%clk 0:02:32]} 14... b4 {[%clk 0:01:56.6]} 15. Ncd1 {[%clk 0:02:32.4]} 15...
Rab8 {[%clk 0:01:40.9]} 16. O-O {[%clk 0:02:27]} 16... Nc5 {[%clk 0:01:34.8]}
17. axb4 {[%clk 0:02:06.5]} 17... Qxa1 {[%clk 0:01:32.4]} 18. bxc5 {[%clk
0:02:07.3]} 18... dxc5 {[%clk 0:01:32.4]} 19. Nd3 {[%clk 0:02:06.8]} 19... c4
{[%clk 0:01:12.5]} 20. Nc5 {[%clk 0:02:06.5]} 20... Ba4 {[%clk 0:01:07.7]} 21.
Nc3 {[%clk 0:02:05.6]} 21... Qxb2 {[%clk 0:01:05.6]} 22. N5xa4 {[%clk
0:02:04.4]} 22... Qxd2 {[%clk 0:01:01.7]} 23. Bxd2 {[%clk 0:02:06.3]} 23... Nd7
{[%clk 0:01:03.3]} 24. Be3 {[%clk 0:02:05.4]} 24... Nb6 {[%clk 0:00:56.9]} 25.
Nxb6 {[%clk 0:02:03.3]} 25... axb6 {[%clk 0:00:58.1]} 26. Nb5 {[%clk 0:02:04.7]}
26... Rfc8 {[%clk 0:00:47.5]} 27. Rc1 {[%clk 0:02:03.7]} 27... Bf8 {[%clk
0:00:31.5]} 28. d6 {[%clk 0:01:52.4]} 28... Rd8 {[%clk 0:00:22.7]} 29. Bg5
{[%clk 0:01:49]} 29... Rd7 {[%clk 0:00:22.4]} 30. Bf6 {[%clk 0:01:40.3]} 30...
Bxd6 {[%clk 0:00:22.1]} 31. Nxd6 {[%clk 0:01:40.5]} 31... Rxd6 {[%clk
0:00:10.5]} 32. Bxe5 {[%clk 0:01:41.2]} 32... Rd2 {[%clk 0:00:07.2]} 33. Bxb8
{[%clk 0:01:40.7]} 33... Rxe2 {[%clk 0:00:08.8]} 34. Rxc4 {[%clk 0:01:41.7]}
34... Rb2 {[%clk 0:00:10.4]} 35. Rc8+ {[%clk 0:01:41.1]} 35... Kh7 {[%clk
0:00:11.1]} 36. Be5 {[%clk 0:01:41.8]} 36... Rb1+ {[%clk 0:00:13]} 37. Kh2
{[%clk 0:01:42.8]} 37... g5 {[%clk 0:00:14.4]} 38. hxg5 {[%clk 0:01:43.1]} 38...
Kg6 {[%clk 0:00:16]} 39. Rg8+ {[%clk 0:01:43.9]} 39... Kh7 {[%clk 0:00:17.3]}
40. Rg7+ {[%clk 0:01:44.9]} 40... Kh8 {[%clk 0:00:18.9]} 41. Rg6+ {[%clk
0:01:41.4]} 41... f6 {[%clk 0:00:14.9]} 42. Bxf6+ {[%clk 0:01:41.5]} 42... Kh7
{[%clk 0:00:16]} 43. Rh6+ {[%clk 0:01:42.7]} 43... Kg8 {[%clk 0:00:17.9]} 44. g6
{[%clk 0:01:43.9]} 44... Rh1+ {[%clk 0:00:16.2]} 45. Kxh1 {[%clk 0:01:43.9]}
45... h4 {[%clk 0:00:17.7]} 46. Rh8# {[%clk 0:01:44.8]} 1-0

[Event "*** Titled Tuesday Blitz"]
[Site "Chess.com"]
[Date "2019.08.06"]
[Round "1"]
[White "gena217"]
[Black "Litti"]
[Result "1-0"]
[WhiteElo "2935"]
[BlackElo "2485"]
[TimeControl "180+2"]
[EndTime "13:07:46 PDT"]
[Termination "gena217 won by resignation"]

1. e4 {[%clk 0:03:01.9]} 1... c5 {[%clk 0:03:01]} 2. Nf3 {[%clk 0:03:02.8]} 2...
e6 {[%clk 0:03:02.2]} 3. g3 {[%clk 0:03:03.5]} 3... Nc6 {[%clk 0:03:01.2]} 4.
Bg2 {[%clk 0:03:04.5]} 4... Nf6 {[%clk 0:02:57.3]} 5. d3 {[%clk 0:03:05.3]} 5...
d5 {[%clk 0:02:58.1]} 6. Qe2 {[%clk 0:03:06.5]} 6... Be7 {[%clk 0:02:58.9]} 7.
O-O {[%clk 0:03:06.3]} 7... O-O {[%clk 0:02:59.1]} 8. e5 {[%clk 0:03:06.7]} 8...
Nd7 {[%clk 0:02:59.9]} 9. c4 {[%clk 0:03:08]} 9... a6 {[%clk 0:02:57.3]} 10. Bf4
{[%clk 0:02:36.9]} 10... b5 {[%clk 0:02:56.6]} 11. h4 {[%clk 0:02:36.3]} 11...
Nb6 {[%clk 0:02:55.8]} 12. Nbd2 {[%clk 0:02:33.7]} 12... Bb7 {[%clk 0:02:51.5]}
13. Rad1 {[%clk 0:02:25.2]} 13... Re8 {[%clk 0:02:26.1]} 14. b3 {[%clk
0:02:24.6]} 14... Bf8 {[%clk 0:02:22]} 15. Rfe1 {[%clk 0:02:24.3]} 15... Qd7
{[%clk 0:02:08.5]} 16. h5 {[%clk 0:02:22.8]} 16... Rad8 {[%clk 0:02:06.3]} 17.
h6 {[%clk 0:02:21.4]} 17... g6 {[%clk 0:02:06.6]} 18. Nf1 {[%clk 0:02:20.4]}
18... Qc8 {[%clk 0:01:58.6]} 19. N1h2 {[%clk 0:02:17.7]} 19... dxc4 {[%clk
0:01:54]} 20. dxc4 {[%clk 0:02:17.9]} 20... bxc4 {[%clk 0:01:48.4]} 21. bxc4
{[%clk 0:02:19.8]} 21... Nd4 {[%clk 0:01:46.1]} 22. Nxd4 {[%clk 0:02:18.3]}
22... Bxg2 {[%clk 0:01:21.2]} 23. Kxg2 {[%clk 0:01:56.8]} 23... Rxd4 {[%clk
0:01:17.1]} 24. Rxd4 {[%clk 0:01:56.6]} 24... cxd4 {[%clk 0:01:19]} 25. Ng4
{[%clk 0:01:58]} 25... Rd8 {[%clk 0:01:13.7]} 26. Bg5 {[%clk 0:01:46.8]} 26...
d3 {[%clk 0:00:58.9]} 27. Qf3 {[%clk 0:01:42.5]} 27... Rd4 {[%clk 0:00:57.6]}
28. Nf6+ {[%clk 0:01:24.4]} 28... Kh8 {[%clk 0:00:58.3]} 29. Be3 {[%clk
0:01:25.9]} 29... d2 {[%clk 0:00:12.8]} 30. Rd1 {[%clk 0:01:25.1]} 30... Qxc4
{[%clk 0:00:13.8]} 31. Bxd4 {[%clk 0:01:22.1]} 31... Qxd4 {[%clk 0:00:15.7]} 32.
Ng4 {[%clk 0:01:07.2]} 32... Nc4 {[%clk 0:00:11.9]} 33. Qxf7 {[%clk 0:01:04]}
33... Qe4+ {[%clk 0:00:09.5]} 34. Kg1 {[%clk 0:00:51.6]} 34... Qf5 {[%clk
0:00:10]} 35. Nf6 {[%clk 0:00:50.1]} 1-0

[Event "*** Titled Tuesday Blitz"]
[Site "Chess.com"]
[Date "2019.08.06"]
[Round "1"]
[White "IMDT02"]
[Black "kinga2008"]
[Result "1-0"]
[WhiteElo "2523"]
[BlackElo "1910"]
[TimeControl "180+2"]
[EndTime "13:07:47 PDT"]
[Termination "IMDT02 won on time"]

1. d4 {[%clk 0:03:01.4]} 1... g6 {[%clk 0:02:58.6]} 2. c4 {[%clk 0:03:00.4]}
2... Bg7 {[%clk 0:02:51.3]} 3. Nc3 {[%clk 0:03:01.5]} 3... d6 {[%clk 0:02:50.9]}
4. e4 {[%clk 0:03:02.4]} 4... Nd7 {[%clk 0:02:50.3]} 5. Be3 {[%clk 0:03:01.4]}
5... a6 {[%clk 0:02:49.1]} 6. f3 {[%clk 0:03:00.7]} 6... e5 {[%clk 0:02:45.6]}
7. Nge2 {[%clk 0:03:00.4]} 7... Ne7 {[%clk 0:02:46.6]} 8. Qd2 {[%clk 0:02:58.3]}
8... O-O {[%clk 0:02:34.3]} 9. g4 {[%clk 0:02:30.1]} 9... f5 {[%clk 0:02:28.3]}
10. gxf5 {[%clk 0:02:28.9]} 10... gxf5 {[%clk 0:02:29.4]} 11. Rg1 {[%clk
0:02:29.6]} 11... f4 {[%clk 0:02:25.9]} 12. Bf2 {[%clk 0:02:28.8]} 12... Ng6
{[%clk 0:02:21.3]} 13. O-O-O {[%clk 0:02:25.6]} 13... Nh4 {[%clk 0:02:15.5]} 14.
Qd3 {[%clk 0:01:56]} 14... exd4 {[%clk 0:01:51.6]} 15. Bxd4 {[%clk 0:01:56]}
15... Ng6 {[%clk 0:01:40.2]} 16. Bxg7 {[%clk 0:01:44]} 16... Kxg7 {[%clk
0:01:36.3]} 17. Nd4 {[%clk 0:01:28.7]} 17... Ne5 {[%clk 0:01:35.3]} 18. Qc2
{[%clk 0:01:22.4]} 18... Kh8 {[%clk 0:01:07.1]} 19. c5 {[%clk 0:01:18.9]} 19...
Qh4 {[%clk 0:00:58.6]} 20. cxd6 {[%clk 0:01:07.4]} 20... cxd6 {[%clk 0:00:57.1]}
21. Kb1 {[%clk 0:00:53.8]} 21... Bh3 {[%clk 0:00:41.3]} 22. Be2 {[%clk
0:00:49.6]} 22... Bd7 {[%clk 0:00:35.8]} 23. Rg2 {[%clk 0:00:50.8]} 23... Bh3
{[%clk 0:00:32]} 24. Rgg1 {[%clk 0:00:50.9]} 24... Bd7 {[%clk 0:00:30.8]} 25.
Nf5 {[%clk 0:00:40.2]} 25... Bxf5 {[%clk 0:00:20.9]} 26. exf5 {[%clk 0:00:42.1]}
26... Ne7 {[%clk 0:00:19.5]} 27. f6 {[%clk 0:00:33.2]} 27... Qxf6 {[%clk
0:00:18.1]} 28. Ne4 {[%clk 0:00:33.7]} 28... Qh6 {[%clk 0:00:08.8]} 29. Nxd6
{[%clk 0:00:31.9]} 1-0

[Event "*** Titled Tuesday Blitz"]
[Site "Chess.com"]
[Date "2019.08.06"]
[Round "1"]
[White "jefferyx"]
[Black "Naruto-K"]
[Result "1-0"]
[WhiteElo "2923"]
[BlackElo "2483"]
[TimeControl "180+2"]
[EndTime "13:07:48 PDT"]
[Termination "jefferyx won by resignation"]

1. d4 {[%clk 0:02:49.1]} 1... Nf6 {[%clk 0:03:00.4]} 2. c4 {[%clk 0:02:49.6]}
2... d6 {[%clk 0:03:00.3]} 3. Nf3 {[%clk 0:02:48.5]} 3... g6 {[%clk 0:03:00.9]}
4. g3 {[%clk 0:02:49.8]} 4... Bg7 {[%clk 0:03:02.4]} 5. Bg2 {[%clk 0:02:51.3]}
5... O-O {[%clk 0:03:04.2]} 6. O-O {[%clk 0:02:52.7]} 6... c6 {[%clk 0:02:50.4]}
7. Nc3 {[%clk 0:02:43.6]} 7... Nbd7 {[%clk 0:02:51]} 8. e4 {[%clk 0:02:43.6]}
8... e5 {[%clk 0:02:51.8]} 9. h3 {[%clk 0:02:44.3]} 9... Re8 {[%clk 0:02:51.8]}
10. Be3 {[%clk 0:02:44.9]} 10... a5 {[%clk 0:02:49.7]} 11. Qc2 {[%clk 0:02:45]}
11... Qc7 {[%clk 0:02:46.2]} 12. d5 {[%clk 0:02:30.8]} 12... Nc5 {[%clk
0:02:46]} 13. Nd2 {[%clk 0:02:27.2]} 13... Nfd7 {[%clk 0:02:42]} 14. Rae1 {[%clk
0:02:14.2]} 14... a4 {[%clk 0:02:40.8]} 15. f4 {[%clk 0:02:15]} 15... Qa5 {[%clk
0:02:40.6]} 16. f5 {[%clk 0:02:15]} 16... Nb6 {[%clk 0:02:30.9]} 17. Rb1 {[%clk
0:01:34.1]} 17... Na6 {[%clk 0:02:15.6]} 18. Qd1 {[%clk 0:01:28.5]} 18... Nb4
{[%clk 0:02:07.3]} 19. Qf3 {[%clk 0:01:25]} 19... Kh8 {[%clk 0:01:58.4]} 20.
fxg6 {[%clk 0:01:11.6]} 20... fxg6 {[%clk 0:01:59.3]} 21. Qf7 {[%clk 0:01:13.5]}
21... Bd7 {[%clk 0:01:48.9]} 22. Kh2 {[%clk 0:01:14.8]} 22... Red8 {[%clk
0:01:29.7]} 23. Bg5 {[%clk 0:01:00.8]} 23... Rf8 {[%clk 0:01:29.6]} 24. Qe7
{[%clk 0:01:01.9]} 24... Qc5 {[%clk 0:01:19.5]} 25. Bf6 {[%clk 0:00:31.7]} 25...
Rxf6 {[%clk 0:01:10.3]} 26. Rxf6 {[%clk 0:00:33.6]} 26... Bxf6 {[%clk
0:00:42.4]} 27. Qxf6+ {[%clk 0:00:35.5]} 27... Kg8 {[%clk 0:00:44]} 28. Rf1
{[%clk 0:00:37.4]} 28... Re8 {[%clk 0:00:40]} 29. h4 {[%clk 0:00:35.2]} 29...
Nc2 {[%clk 0:00:36.6]} 30. Bh3 {[%clk 0:00:33.4]} 30... Ne3 {[%clk 0:00:28.3]}
31. Qf7+ {[%clk 0:00:34]} 31... Kh8 {[%clk 0:00:27.4]} 32. Qf6+ {[%clk
0:00:35.9]} 32... Kg8 {[%clk 0:00:28.4]} 33. Qf7+ {[%clk 0:00:29.7]} 33... Kh8
{[%clk 0:00:29.3]} 34. Bxd7 {[%clk 0:00:31.6]} 34... Nxf1+ {[%clk 0:00:30]} 35.
Nxf1 {[%clk 0:00:33.5]} 35... Ra8 {[%clk 0:00:24.8]} 36. Qf6+ {[%clk 0:00:33.7]}
1-0

[Event "*** Titled Tuesday Blitz"]
[Site "Chess.com"]
[Date "2019.08.06"]
[Round "1"]
[White "chesstatour"]
[Black "Kargan90"]
[Result "0-1"]
[WhiteElo "2005"]
[BlackElo "2530"]
[TimeControl "180+2"]
[EndTime "13:07:54 PDT"]
[Termination "Kargan90 won by checkmate"]

1. d4 {[%clk 0:03:01.1]} 1... Nf6 {[%clk 0:02:55.5]} 2. c4 {[%clk 0:03:01.1]}
2... e6 {[%clk 0:02:56.7]} 3. g3 {[%clk 0:03:02.2]} 3... c5 {[%clk 0:02:57.2]}
4. Nf3 {[%clk 0:03:01.9]} 4... cxd4 {[%clk 0:02:56.1]} 5. Nxd4 {[%clk
0:03:02.6]} 5... d5 {[%clk 0:02:57.2]} 6. cxd5 {[%clk 0:03:03.6]} 6... Qxd5
{[%clk 0:02:56.4]} 7. Rg1 {[%clk 0:02:57.1]} 7... Bc5 {[%clk 0:02:53.1]} 8. e3
{[%clk 0:02:47.9]} 8... e5 {[%clk 0:02:49.3]} 9. Nb5 {[%clk 0:02:41]} 9... Qxd1+
{[%clk 0:02:49.4]} 10. Kxd1 {[%clk 0:02:41.7]} 10... Na6 {[%clk 0:02:38.8]} 11.
N1c3 {[%clk 0:02:31]} 11... Bg4+ {[%clk 0:02:38.6]} 12. Be2 {[%clk 0:02:19.7]}
12... O-O-O+ {[%clk 0:02:39.1]} 13. Kc2 {[%clk 0:02:08.2]} 13... Nb4+ {[%clk
0:02:39.6]} 14. Kb3 {[%clk 0:02:08.5]} 14... a6 {[%clk 0:02:22.9]} 15. Na3
{[%clk 0:01:41.9]} 15... Nd3 {[%clk 0:02:15.4]} 16. Bxd3 {[%clk 0:01:22.2]}
16... Rxd3 {[%clk 0:02:14.6]} 17. Kc4 {[%clk 0:01:06]} 17... Rxc3+ {[%clk
0:00:59.6]} 18. bxc3 {[%clk 0:00:59.8]} 18... Ne4 {[%clk 0:00:59.7]} 19. Nc2
{[%clk 0:00:14.1]} 19... Rd8 {[%clk 0:00:52.3]} 20. Kb3 {[%clk 0:00:12.7]} 20...
Nxf2 {[%clk 0:00:44.2]} 21. Ba3 {[%clk 0:00:10.4]} 21... Be6+ {[%clk 0:00:42.1]}
22. c4 {[%clk 0:00:04.9]} 22... Rd3+ {[%clk 0:00:41.4]} 23. Kb2 {[%clk
0:00:05.5]} 23... Bxa3+ {[%clk 0:00:37.8]} 24. Nxa3 {[%clk 0:00:07.4]} 24...
Rxe3 {[%clk 0:00:39.1]} 25. Rgf1 {[%clk 0:00:07.4]} 25... Re2+ {[%clk
0:00:33.3]} 26. Kc3 {[%clk 0:00:08]} 26... f6 {[%clk 0:00:24.7]} 27. Nc2 {[%clk
0:00:07]} 27... b5 {[%clk 0:00:18.3]} 28. cxb5 {[%clk 0:00:06.8]} 28... axb5
{[%clk 0:00:19.6]} 29. Rae1 {[%clk 0:00:07]} 29... Ne4+ {[%clk 0:00:19.8]} 30.
Kd3 {[%clk 0:00:05.9]} 30... Bc4# {[%clk 0:00:20.7]} 0-1

[Event "*** Titled Tuesday Blitz"]
[Site "Chess.com"]
[Date "2019.08.06"]
[Round "1"]
[White "ElHelvetico"]
[Black "Mostii"]
[Result "1-0"]
[WhiteElo "2700"]
[BlackElo "2356"]
[TimeControl "180+2"]
[EndTime "13:07:57 PDT"]
[Termination "ElHelvetico won on time"]

1. e4 {[%clk 0:03:01.9]} 1... e6 {[%clk 0:02:07.4]} 2. d4 {[%clk 0:03:01.6]}
2... d5 {[%clk 0:02:09.3]} 3. Nc3 {[%clk 0:03:02.2]} 3... Nf6 {[%clk 0:02:10.3]}
4. Bg5 {[%clk 0:03:03.2]} 4... Be7 {[%clk 0:02:11.6]} 5. e5 {[%clk 0:03:03]}
5... Nfd7 {[%clk 0:02:12.6]} 6. h4 {[%clk 0:03:04.6]} 6... h6 {[%clk 0:02:13.5]}
7. Bxe7 {[%clk 0:03:04.1]} 7... Qxe7 {[%clk 0:02:15.4]} 8. f4 {[%clk 0:03:05.7]}
8... a6 {[%clk 0:02:15.4]} 9. Nf3 {[%clk 0:03:07.3]} 9... c5 {[%clk 0:02:16.4]}
10. Ne2 {[%clk 0:03:05.9]} 10... Nc6 {[%clk 0:02:17.3]} 11. g4 {[%clk
0:02:59.1]} 11... cxd4 {[%clk 0:02:17.9]} 12. Qd2 {[%clk 0:02:44.8]} 12... b5
{[%clk 0:02:13.4]} 13. Nexd4 {[%clk 0:02:44.8]} 13... Nxd4 {[%clk 0:02:13.7]}
14. Nxd4 {[%clk 0:02:45.7]} 14... Bb7 {[%clk 0:02:15]} 15. O-O-O {[%clk
0:02:44.2]} 15... O-O-O {[%clk 0:02:16.3]} 16. Kb1 {[%clk 0:02:40.9]} 16... Kb8
{[%clk 0:02:16.8]} 17. Rh3 {[%clk 0:02:36.1]} 17... Rc8 {[%clk 0:02:17.8]} 18.
Re3 {[%clk 0:02:08.3]} 18... Rc7 {[%clk 0:02:14.4]} 19. h5 {[%clk 0:02:07.5]}
19... Rhc8 {[%clk 0:02:14.7]} 20. f5 {[%clk 0:01:57.8]} 20... Nb6 {[%clk
0:02:10.1]} 21. Qa5 {[%clk 0:01:46.9]} 21... Nc4 {[%clk 0:02:02.5]} 22. Bxc4
{[%clk 0:01:47]} 22... Rxc4 {[%clk 0:02:04.4]} 23. fxe6 {[%clk 0:01:39.6]} 23...
fxe6 {[%clk 0:02:05]} 24. Qb6 {[%clk 0:01:37.6]} 24... Qg5 {[%clk 0:00:30.9]}
25. Ree1 {[%clk 0:01:14.5]} 25... Qxg4 {[%clk 0:00:29.3]} 26. Rg1 {[%clk
0:01:03.1]} 26... Qxh5 {[%clk 0:00:25]} 27. Qxe6 {[%clk 0:00:58]} 27... g5
{[%clk 0:00:22.3]} 28. Qd6+ {[%clk 0:00:58]} 28... Ka8 {[%clk 0:00:22.2]} 29. e6
{[%clk 0:00:59]} 29... Qe8 {[%clk 0:00:22.8]} 30. Rgf1 {[%clk 0:00:55.6]} 30...
R4c7 {[%clk 0:00:07.6]} 31. a3 {[%clk 0:00:46]} 31... Re7 {[%clk 0:00:08.5]} 32.
Rde1 {[%clk 0:00:47.3]} 32... Rc4 {[%clk 0:00:09.3]} 33. Nf5 {[%clk 0:00:47.9]}
33... Rc6 {[%clk 0:00:08.2]} 34. Qxe7 {[%clk 0:00:48.3]} 1-0

[Event "*** Titled Tuesday Blitz"]
[Site "Chess.com"]
[Date "2019.08.06"]
[Round "1"]
[White "chito89"]
[Black "ama18"]
[Result "1-0"]
[WhiteElo "2833"]
[BlackElo "2421"]
[TimeControl "180+2"]
[EndTime "13:08:06 PDT"]
[Termination "chito89 won by resignation"]

1. e4 {[%clk 0:02:59]} 1... c5 {[%clk 0:02:58]} 2. Nf3 {[%clk 0:02:54.4]} 2...
e6 {[%clk 0:02:58.3]} 3. g3 {[%clk 0:02:45.1]} 3... Nc6 {[%clk 0:02:56.6]} 4.
Bg2 {[%clk 0:02:46.3]} 4... Nf6 {[%clk 0:02:54.9]} 5. Qe2 {[%clk 0:02:47.2]}
5... Be7 {[%clk 0:02:55]} 6. O-O {[%clk 0:02:47.4]} 6... d5 {[%clk 0:02:55.2]}
7. e5 {[%clk 0:02:47.6]} 7... Nd7 {[%clk 0:02:55.3]} 8. d3 {[%clk 0:02:49.3]}
8... b6 {[%clk 0:02:35.2]} 9. c4 {[%clk 0:02:49.1]} 9... dxc4 {[%clk 0:02:28.8]}
10. dxc4 {[%clk 0:02:49.3]} 10... Bb7 {[%clk 0:02:26.7]} 11. Rd1 {[%clk
0:02:42.6]} 11... Qc7 {[%clk 0:02:25.9]} 12. Nc3 {[%clk 0:02:40]} 12... a6
{[%clk 0:02:16]} 13. h4 {[%clk 0:02:39.7]} 13... O-O-O {[%clk 0:02:12.9]} 14.
Bf4 {[%clk 0:02:33.2]} 14... h6 {[%clk 0:01:29.9]} 15. Nd5 {[%clk 0:02:26.1]}
15... Qb8 {[%clk 0:01:25]} 16. Rac1 {[%clk 0:02:14.5]} 16... Rhg8 {[%clk
0:01:12.5]} 17. h5 {[%clk 0:02:08.4]} 17... Qa8 {[%clk 0:01:10.6]} 18. a3 {[%clk
0:01:41.2]} 18... Rge8 {[%clk 0:00:53.7]} 19. b4 {[%clk 0:01:41.4]} 19... cxb4
{[%clk 0:00:47.5]} 20. axb4 {[%clk 0:01:43]} 20... Nxb4 {[%clk 0:00:46.3]} 21.
Nxe7+ {[%clk 0:01:39.8]} 21... Rxe7 {[%clk 0:00:48.2]} 22. Rd6 {[%clk
0:01:38.2]} 22... Kc7 {[%clk 0:00:39.1]} 23. Rcd1 {[%clk 0:01:36.3]} 23... a5
{[%clk 0:00:34]} 24. Be3 {[%clk 0:01:08.8]} 24... Ree8 {[%clk 0:00:31.3]} 25.
Qd2 {[%clk 0:01:07.3]} 25... Nc5 {[%clk 0:00:29.3]} 26. Bxc5 {[%clk 0:01:04.9]}
26... bxc5 {[%clk 0:00:29.5]} 27. Qe3 {[%clk 0:01:06.5]} 27... Na6 {[%clk
0:00:25.4]} 28. Qf4 {[%clk 0:01:04]} 28... Rxd6 {[%clk 0:00:09.4]} 29. exd6+
{[%clk 0:01:04.3]} 29... Kb6 {[%clk 0:00:09.1]} 30. d7 {[%clk 0:00:57.7]} 30...
Rd8 {[%clk 0:00:08.7]} 31. Qxf7 {[%clk 0:00:58.1]} 31... Nb4 {[%clk 0:00:08.8]}
32. Qxe6+ {[%clk 0:00:58.8]} 32... Ka7 {[%clk 0:00:08.7]} 33. Qe7 {[%clk
0:00:59.9]} 33... Na6 {[%clk 0:00:08.8]} 34. Nh4 {[%clk 0:00:48.2]} 34... Bxg2
{[%clk 0:00:08.7]} 35. Nxg2 {[%clk 0:00:49.8]} 35... a4 {[%clk 0:00:08]} 36. Nf4
{[%clk 0:00:50.7]} 36... Qb8 {[%clk 0:00:07.2]} 37. Ne6 {[%clk 0:00:50.8]} 37...
Qb3 {[%clk 0:00:07.7]} 38. Rf1 {[%clk 0:00:49.9]} 1-0